bitfinex/quotes_ETHUSD_20250214
["timestamp","ask_amount","ask_price","bid_price","bid_amount"]
[1739566686146,0.8105,2730.3,2729.9,3.66312]
[1739566686431,0.55,2730.2,2729.8,3.66326]
[1739566686598,0.55,2730.2,2729.7,3.6633]
[1739566686599,0.55,2730.2,2729.7,7.32662]
[1739566686930,0.55,2730.2,2729.8,3.66323]
[1739566687094,0.55,2730.2,2729.9,3.66304]
[1739566687300,0.8105,2730.3,2730.0,3.66296]
[1739566687496,4.4254,2730.6,2730.0,3.66296]
[1739566687696,4.4254,2730.6,2729.8,3.66317]
[1739566688137,4.4254,2730.6,2730.0,3.66297]
[1739566688633,3.66234,2730.5,2730.0,3.66292]
[1739566688927,4.42548,2730.6,2730.0,3.66292]
[1739566689105,4.42541,2730.6,2730.0,3.66292]
[1739566689511,4.42541,2730.6,2730.1,3.66286]
[1739566689693,4.42541,2730.6,2730.0,3.66292]
[1739566689694,0.7632,2730.6,2730.0,3.66292]
[1739566689898,4.42541,2730.6,2730.0,3.66292]
[1739566690440,4.47598166,2730.5,2729.5,3.66363]
[1739566690646,4.47598166,2730.5,2729.5,7.32721]
[1739566690647,3.66298,2730.1,2729.5,7.32721]
[1739566690875,3.66298,2730.1,2729.6,3.6635]
[1739566691044,3.66298,2730.1,2729.5,3.66358]
[1739566691045,4.2126,2730.3,2729.7,3.66332]
[1739566691761,3.66281,2730.2,2729.7,3.66332]
[1739566691965,4.2126,2730.3,2729.7,3.66332]
[1739566692168,3.66276,2730.2,2729.7,3.66332]
[1739566692373,3.66287,2730.1,2729.5,3.66359]
[1739566692551,4.2126,2730.3,2729.6,3.66345]
[1739566692733,3.66273,2730.2,2729.6,3.66345]
[1739566692921,3.66273,2730.2,2729.7,3.66338]
[1739566693374,0.55,2730.3,2729.8,3.66325]
[1739566693538,4.42575,2730.4,2729.1,0.7727]
[1739566693539,0.7632,2730.4,2730.0,3.66293]
[1739566693738,3.66262,2730.3,2729.7,3.66332]
[1739566694070,3.66262,2730.3,2729.8,3.66319]
[1739566694265,0.7632,2730.4,2729.9,3.66309]
[1739566694566,4.42566,2730.4,2729.9,3.66309]
[1739566695074,3.66264,2730.3,2729.7,3.66331]
[1739566695947,3.66264,2730.3,2729.8,3.66326]
[1739566696842,3.66264,2730.3,2729.7,3.66331]
[1739566696843,3.66264,2730.3,2729.7,7.32664]
[1739566697041,3.66264,2730.3,2729.7,3.66331]
[1739566697211,3.66264,2730.3,2729.8,3.66323]
[1739566697418,3.66264,2730.3,2729.7,3.66336]
[1739566697736,3.66281,2730.2,2729.5,3.66357]
[1739566697935,3.66268,2730.3,2729.8,3.66314]
[1739566698240,3.66273,2730.2,2729.8,3.66314]
[1739566698532,3.66273,2730.2,2729.7,3.66339]
[1739566698734,0.03750561,2730.1,2729.4,3.66372]
[1739566698933,3.66307,2730.0,2729.4,7.32745]
[1739566699139,4.42572,2730.4,2729.2,3.664]
[1739566699140,3.66348,2729.7,2729.2,3.664]
[1739566699677,4.42648,2729.8,2729.3,3.66387]
[1739566699829,4.42653,2729.8,2729.2,3.66397]
[1739566700030,4.42653,2729.8,2729.3,3.66391]
[1739566700457,0.55,2730.1,2729.3,0.03663671]
[1739566700458,3.66298,2730.1,2729.3,0.03663671]
[1739566700674,3.66316,2729.9,2729.4,3.66372]
[1739566700977,4.42603,2730.2,2729.5,3.66359]
[1739566700978,3.66308,2730.0,2729.5,3.66359]
[1739566701273,3.66314,2729.9,2729.4,3.6638]
[1739566701782,3.66347,2729.7,2729.2,3.66399]
[1739566702274,3.66314,2729.9,2729.2,3.66399]
[1739566702574,3.6632,2729.9,2729.4,3.6638]
[1739566703115,3.66329,2729.8,2729.2,3.66397]
[1739566703374,4.48036,2729.6,2728.7,0.9229313]
[1739566703538,3.6638,2729.4,2728.9,3.66444]
[1739566703737,3.70145561,2729.3,2728.9,3.66444]
[1739566703933,3.70145561,2729.3,2728.7,3.8122513]
[1739566704133,3.70145561,2729.3,2728.8,3.66455]
[1739566704780,3.70145561,2729.3,2728.9,3.66443]
[1739566704940,3.66381,2729.4,2728.8,3.66455]
[1739566705152,3.70146561,2729.3,2728.8,3.66455]
[1739566705473,0.8167,2729.1,2728.7,0.1475313]
[1739566705700,0.8167,2729.1,2727.9,0.7804]
[1739566705701,3.88847605,2728.8,2727.9,0.7804]
[1739566705833,3.0,2729.0,2727.9,0.005]
[1739566705834,3.66568,2728.0,2727.9,0.005]
[1739566706036,4.48238,2728.0,2727.9,0.005]
[1739566706280,4.51988561,2728.0,2727.9,0.005]
[1739566706496,8.06988561,2728.0,2727.9,1e-05]
[1739566706706,8.03238,2728.0,2727.9,1e-05]
[1739566706839,0.8167,2727.2,2727.1,0.005]
[1739566707034,4.52096561,2727.2,2727.1,0.005]
[1739566707237,4.77146,2727.2,2727.1,0.005]
[1739566707471,5.35896561,2727.2,2727.1,0.005]
[1739566707657,8.35896561,2727.2,2727.1,0.005]
[1739566707838,8.32146,2727.2,2727.1,1e-05]
[1739566708038,7.484,2726.8,2726.7,0.005]
[1739566708239,11.37247605,2726.8,2726.7,0.005]
[1739566708538,11.37247605,2726.8,2725.9,3.7710313]
[1739566708539,3.6676,2726.6,2725.9,3.7710313]
[1739566708736,3.6676,2726.6,2725.9,0.49531092]
[1739566708939,11.37247605,2726.8,2725.9,4.16382092]
[1739566709140,4.70517605,2726.8,2725.9,0.49531092]
[1739566709374,4.70517605,2726.8,2725.9,0.1025313]
[1739566709375,3.70499561,2726.7,2725.9,0.1025313]
[1739566709582,3.66749,2726.7,2726.0,3.66836]
[1739566709784,3.66759,2726.6,2725.9,0.1025313]
[1739566709983,0.8167,2726.2,2725.9,0.1025313]
[1739566710760,0.8167,2726.2,2725.9,3.7710113]
[1739566710955,0.8167,2726.2,2725.9,0.1025313]
[1739566711722,8.37338605,2726.2,2725.9,0.1025313]
[1739566711860,3.822,2725.9,2724.4,0.37993097]
[1739566712059,4.43847605,2726.0,2724.4,0.37993097]
[1739566712060,3.88847605,2724.6,2724.4,0.37993097]
[1739566712282,3.67039,2724.5,2724.4,0.37993097]
[1739566712492,3.70789561,2724.5,2724.4,0.37993097]
[1739566712700,4.52989561,2724.5,2724.4,0.37993097]
[1739566712995,0.85950561,2724.5,2724.4,0.37993097]
[1739566713191,3.85739029,2724.9,2724.4,4.05046097]
[1739566713192,3.88847605,2724.9,2724.4,4.05046097]
[1739566713392,0.822,2725.0,2724.8,3.66995]
[1739566713598,0.822,2725.0,2724.9,3.66985]
[1739566713896,3.66867,2725.8,2724.9,3.66985]
[1739566713897,4.49076,2725.8,2725.0,3.66972]
[1739566714061,1.91713846,2726.1,2724.7,0.7919]
[1739566714411,3.66904,2725.6,2724.9,3.66978]
[1739566714595,3.70664561,2725.5,2724.8,3.66998]
[1739566714893,0.822,2725.8,2725.6,3.66886]
[1739566715060,0.822,2726.9,2725.7,0.366886]
[1739566715262,0.822,2726.9,2726.2,3.66808]
[1739566715263,4.48917,2726.9,2726.2,3.66808]
[1739566715464,3.66731,2726.8,2726.2,3.66808]
[1739566715694,3.66731,2726.8,2726.0,3.66835]
[1739566715695,3.66765,2726.6,2725.8,3.66859]
[1739566716064,0.03750561,2726.6,2725.8,3.66859]
[1739566716294,3.66768,2726.6,2725.8,3.66859]
[1739566716600,3.6673,2726.8,2726.1,3.66823]
[1739566716762,3.66759,2726.6,2725.9,3.6684]
[1739566716958,3.66759,2726.6,2725.0,0.7919]
[1739566716959,0.822,2726.6,2725.0,0.7919]
[1739566717180,3.66815,2726.2,2725.4,3.66909]
[1739566717594,3.66851,2725.9,2725.2,3.66939]
[1739566717792,3.66851,2725.9,2725.3,3.66931]
[1739566717995,3.66832,2726.1,2725.3,3.66931]
[1739566718226,3.6685,2726.0,2725.3,3.66931]
[1739566718433,3.66853,2725.9,2725.3,3.66931]
[1739566718649,3.6685,2726.0,2725.3,3.66931]
[1739566718799,3.66852,2725.9,2725.3,3.66931]
[1739566719000,3.6685,2726.0,2725.3,3.66931]
[1739566719297,3.66823,2726.2,2725.5,3.669]
[1739566719495,0.18218087,2726.5,2725.5,3.669]
[1739566719954,0.18218087,2726.5,2725.3,3.66928]
[1739566719955,3.66852,2725.9,2725.1,3.66954]
[1739566720113,1.14700561,2725.8,2724.7,3.67]
[1739566720437,3.66933,2725.3,2724.7,3.67]
[1739566720730,3.66927,2725.4,2724.7,3.67]
[1739566720932,3.66982,2725.0,2724.3,3.67064]
[1739566721134,0.297,2724.9,2723.9,3.67119]
[1739566721443,3.67051,2724.5,2723.7,3.67143]
[1739566721736,3.67081,2724.2,2723.5,3.67162]
[1739566721933,3.67081,2724.2,2723.3,3.67201]
[1739566721934,4.48357,2724.0,2723.3,3.67201]
[1739566722140,0.298,2723.9,2723.2,0.1475313]
[1739566722307,3.67058,2724.4,2723.2,0.1475313]
[1739566722508,3.67092,2724.2,2723.3,0.03671514]
[1739566722731,3.67092,2724.2,2723.4,3.67176]
[1739566722932,3.67116,2724.0,2723.4,3.67176]
[1739566723126,3.67116,2724.0,2723.4,7.34352]
[1739566723411,3.6712,2723.9,2723.2,0.1475313]
[1739566723626,3.6712,2723.9,2723.3,3.6719]
[1739566723942,0.299,2724.4,2723.3,3.67193]
[1739566723943,0.8125,2723.7,2723.3,3.67193]
[1739566724166,0.8125,2723.7,2723.2,3.8195913]
[1739566724305,4.78406,2723.7,2723.2,0.1475313]
[1739566724505,3.67186,2723.5,2723.2,0.1475313]
[1739566725106,3.6719,2723.4,2723.2,0.0975313]
[1739566725314,0.03750561,2723.3,2723.2,0.0975313]
[1739566725611,0.03750561,2723.3,2722.1,0.005]
[1739566725612,0.8125,2723.0,2722.1,0.005]
[1739566725825,3.67349,2722.2,2722.1,0.005]
[1739566727310,4.48599,2722.2,2722.1,0.005]
[1739566727714,3.67349,2722.2,2722.1,0.005]
[1739566728667,0.8125,2722.7,2722.1,0.005]
[1739566728958,3.67284,2722.7,2722.1,0.005]
[1739566729277,3.67326,2722.4,2722.1,0.005]
[1739566729768,3.67349,2722.2,2722.1,0.005]
[1739566730740,3.67277,2722.8,2722.1,0.005]
[1739566730939,0.03750561,2722.9,2722.1,0.005]
[1739566731119,3.67349,2722.2,2722.1,0.005]
[1739566731633,3.67314,2722.5,2722.1,0.005]
[1739566732145,3.67282,2722.7,2722.1,0.005]
[1739566732537,3.67318,2722.5,2722.1,0.005]
[1739566732749,0.7853,2724.1,2722.2,0.807]
[1739566732973,0.7853,2724.1,2722.2,4.4804]
[1739566732974,3.6727,2722.8,2722.2,4.4804]
[1739566733276,3.67248,2723.0,2722.3,3.67326]
[1739566733470,3.6722,2723.2,2722.3,0.815886]
[1739566733617,3.67194,2723.4,2722.6,3.67288]
[1739566733816,3.67249,2723.0,2722.2,4.48043]
[1739566734119,3.67216,2723.2,2722.4,3.67313]
[1739566734328,3.67202,2723.3,2722.6,3.67294]
[1739566734648,3.67166,2723.6,2722.9,0.807]
[1739566734876,3.67189,2723.4,2722.9,0.807]
[1739566735020,0.03750561,2723.3,2722.9,0.807]
[1739566735219,3.67189,2723.4,2722.9,0.807]
[1739566735416,3.67118,2724.0,2723.0,0.03672249]
[1739566735659,3.67121,2723.9,2723.0,0.03671672]
[1739566735825,3.67111,2724.0,2723.5,3.67172]
[1739566736138,3.67111,2724.0,2723.3,3.67193]
[1739566736139,3.67087,2724.2,2723.4,3.67175]
[1739566736331,4.45559,2724.6,2723.6,3.67152]
[1739566736332,3.6706,2724.4,2723.6,3.67152]
[1739566736562,0.7853,2724.6,2723.6,3.67149]
[1739566736758,3.67054,2724.4,2723.8,3.67133]
[1739566737056,9.48604,2724.8,2723.9,0.807]
[1739566737260,5.816,2724.8,2723.9,4.47818]
[1739566737461,3.67012,2724.7,2723.5,4.47872]
[1739566737635,3.67098,2724.1,2723.5,8.15038]
[1739566737841,3.67098,2724.1,2723.5,4.47866]
[1739566738042,3.67078,2724.3,2723.6,3.67155]
[1739566738240,3.67071,2724.3,2723.8,3.67127]
[1739566738576,3.67071,2724.3,2723.6,3.67157]
[1739566738577,3.67063,2724.4,2723.6,3.67149]
[1739566738783,3.67063,2724.4,2723.8,3.67128]
[1739566739140,5.816,2724.8,2723.9,3.67117]
[1739566739339,5.816,2724.8,2723.7,3.6714]
[1739566739340,3.67061,2724.4,2723.7,3.6714]
[1739566739558,3.67061,2724.4,2723.9,3.67116]
[1739566739866,3.67035,2724.6,2723.9,3.67116]
[1739566740171,5.816,2724.8,2724.2,3.67068]
[1739566740364,5.816,2724.8,2723.5,4.47869]
[1739566740365,5.816,2724.8,2723.8,3.67131]
[1739566740669,3.67065,2724.4,2723.8,3.67131]
[1739566740895,3.67062,2724.4,2723.8,3.67128]
[1739566741171,3.67062,2724.4,2723.5,0.807]
[1739566741172,3.67071,2724.3,2723.7,3.67147]
[1739566741342,3.67062,2724.4,2723.7,3.67136]
[1739566741664,3.67032,2724.6,2723.5,0.807]
[1739566741861,3.67032,2724.6,2723.9,3.67109]
[1739566742063,3.67032,2724.6,2723.5,0.807]
[1739566742064,5.816,2724.8,2723.6,0.03670897]
[1739566742264,5.816,2724.8,2724.4,3.6705]
[1739566742689,5.816,2724.8,2724.5,3.67027]
[1739566742985,0.7853,2725.4,2724.3,0.807]
[1739566743290,0.303,2725.5,2725.2,3.66937]
[1739566743495,0.7853,2726.2,2726.0,3.66834]
[1739566743629,0.7853,2726.2,2724.7,7.34024]
[1739566743630,0.7853,2726.2,2725.9,3.66841]
[1739566743833,1.1353,2726.6,2725.7,3.66866]
[1739566744036,1.1353,2726.6,2726.2,3.668]
[1739566744037,0.7853,2726.6,2726.2,3.668]
[1739566744370,8.03016955,2727.8,2725.6,3.66885]
[1739566744371,0.7853,2727.6,2726.0,0.55]
[1739566744703,0.7853,2727.6,2725.9,0.807]
[1739566744704,0.03750561,2727.5,2725.9,0.807]
[1739566744911,3.66649,2727.4,2726.6,3.66756]
[1739566745199,0.7853,2727.6,2726.2,3.6681]
[1739566745360,0.7853,2727.6,2726.9,3.66703]
[1739566745798,4.45153,2727.6,2726.9,3.66703]
[1739566746107,0.82280561,2727.6,2726.9,3.66703]
[1739566746253,4.48903561,2727.6,2726.9,3.66703]
[1739566746448,3.66677,2727.2,2726.4,0.807]
[1739566746711,3.66716,2726.9,2726.1,3.66823]
[1739566746852,3.6669,2727.1,2726.0,0.807]
[1739566747049,3.70453561,2727.0,2726.2,3.66807]
[1739566747467,3.66702,2727.1,2726.4,3.66782]
[1739566747804,3.66636,2727.5,2726.6,3.66751]
[1739566747947,3.66667,2727.3,2726.6,3.66751]
[1739566748148,3.66667,2727.3,2726.0,0.807]
[1739566748149,3.66702,2727.1,2726.0,0.807]
[1739566748465,3.66665,2727.3,2726.3,3.66789]
[1739566748666,3.66705,2727.0,2726.3,3.66794]
[1739566748867,3.66705,2727.0,2726.4,3.66783]
[1739566749187,7.45157,2727.6,2726.4,3.66783]
[1739566749360,3.66668,2727.3,2726.6,3.66748]
[1739566749794,3.66698,2727.1,2726.4,3.66783]
[1739566749996,3.66698,2727.1,2726.4,3.66775]
[1739566750198,3.66642,2727.5,2726.0,4.47527]
[1739566751664,3.66572,2728.0,2727.2,0.0366665]
[1739566751901,0.7885,2728.1,2727.5,3.6663]
[1739566752489,5.58111,2728.3,2727.7,3.66601]
[1739566752690,5.58111,2728.3,2727.6,3.66618]
[1739566752875,5.58114,2728.3,2727.4,3.66648]
[1739566753080,7.33131,2728.1,2727.4,3.66648]
[1739566753279,3.66564,2728.1,2727.4,3.66648]
[1739566753582,3.66565,2728.1,2727.5,3.66627]
[1739566753765,5.58114,2728.3,2727.7,3.66601]
[1739566753960,1.91579,2728.3,2728.2,3.66542]
[1739566754373,1.91579,2728.3,2727.8,4.42794]
[1739566754719,3.66543,2728.2,2727.6,3.66616]
[1739566754863,6.36962,2728.3,2727.7,3.66604]
[1739566755197,2.70429,2728.3,2727.6,3.66614]
[1739566755364,3.66545,2728.2,2727.6,3.66614]
[1739566755718,2.70429,2728.3,2727.6,3.66614]
[1739566755879,2.70429,2728.3,2727.8,3.66587]
[1739566756201,1.91579,2728.3,2727.5,3.66636]
[1739566756413,1.91579,2728.3,2728.0,3.66567]
[1739566756563,1.91579,2728.3,2727.7,3.66596]
[1739566756961,1.91579,2728.3,2727.9,7.33154]
[1739566757215,1.91579,2728.3,2727.9,3.66573]
[1739566757417,1.91579,2728.3,2728.2,3.66542]
[1739566758531,0.7885,2729.1,2728.6,3.66474]
[1739566758683,0.7885,2729.1,2728.7,3.66473]
[1739566758869,0.7885,2729.9,2729.0,3.66434]
[1739566759075,3.66366,2729.6,2728.9,3.66441]
[1739566759306,0.03750561,2729.5,2728.1,0.7621]
[1739566759636,0.03750561,2729.5,2727.7,0.7621]
[1739566759637,3.66531,2728.3,2727.7,0.7621]
[1739566759921,3.0,2728.8,2727.4,7.33287]
[1739566759922,3.6657,2728.0,2727.4,7.33287]
[1739566760126,6.66523,2728.4,2727.3,0.7621]
[1739566760327,0.7885,2728.6,2727.4,0.03666121]
[1739566760618,0.03750561,2728.5,2727.9,3.66573]
[1739566760829,3.03750561,2728.5,2727.3,0.7621]
[1739566761134,3.66557,2728.1,2727.4,3.66649]
[1739566761264,3.66531,2728.3,2727.6,3.66613]
[1739566761464,3.66552,2728.2,2727.6,3.66613]
[1739566761808,7.33072,2728.3,2727.6,7.33227]
[1739566761970,6.97209,2728.5,2727.4,3.66649]
[1739566762171,3.97209,2728.5,2727.8,3.66595]
[1739566762371,3.66531,2728.3,2727.6,3.6661]
[1739566762572,3.66531,2728.3,2727.3,4.42862]
[1739566762573,3.66545,2728.2,2727.7,3.66601]
[1739566762786,3.66531,2728.3,2727.8,3.6659]
[1739566762990,0.7885,2728.6,2727.8,0.03665877]
[1739566763290,0.03750561,2728.5,2727.8,3.66589]
[1739566763673,4.45338,2728.6,2728.0,3.66568]
[1739566763875,8.11834,2728.6,2728.0,3.66568]
[1739566764113,0.7838,2729.1,2728.0,0.7824]
[1739566764290,0.7838,2729.1,2728.1,3.66547]
[1739566764705,3.66476,2728.7,2728.2,3.66541]
[1739566764906,3.66515,2728.4,2727.8,3.66587]
[1739566765127,0.03750561,2728.6,2727.6,4.44858]
[1739566765295,3.6651,2728.5,2727.9,3.66581]
[1739566765471,7.32995,2728.6,2727.9,3.66575]
[1739566765670,0.307,2728.9,2727.6,0.7824]
[1739566765920,3.66511,2728.5,2727.9,3.66574]
[1739566766114,3.97024067,2729.1,2727.6,0.7824]
[1739566766393,3.66509,2728.5,2727.7,3.66609]
[1739566766592,3.66448,2728.9,2728.1,3.66545]
[1739566766793,3.66468,2728.8,2728.3,3.66524]
[1739566767009,3.66448,2728.9,2728.3,3.66521]
[1739566767228,0.7838,2729.1,2727.9,3.66579]
[1739566767441,0.7838,2729.1,2728.6,3.6648]
[1739566767589,0.7838,2729.1,2728.4,0.7824]
[1739566767794,3.66465,2728.8,2728.3,3.66524]
[1739566768040,3.66465,2728.8,2728.2,3.66533]
[1739566768223,3.66465,2728.8,2728.3,3.66521]
[1739566768391,3.66522,2728.4,2727.9,3.66572]
[1739566768819,3.66472,2728.8,2728.2,3.66534]
[1739566769013,3.0,2728.9,2728.4,3.66508]
[1739566769196,3.66569,2728.0,2727.5,3.66623]
[1739566769411,4.4492,2728.3,2727.4,0.7824]
[1739566769617,7.33121,2728.1,2727.5,3.66629]
[1739566769846,3.66557,2728.1,2727.5,3.66629]
[1739566770147,0.7838,2728.3,2727.4,0.7824]
[1739566770356,4.61067516,2728.2,2726.8,0.7824]
[1739566770551,4.61067516,2728.2,2726.6,3.66754]
[1739566770552,3.66663,2727.3,2726.6,3.66754]
[1739566770705,3.66687,2727.2,2726.6,3.66745]
[1739566770892,3.66699,2727.1,2726.4,7.33547]
[1739566771092,7.33401,2727.1,2726.4,7.33547]
[1739566771292,3.66699,2727.1,2726.4,7.33543]
[1739566771491,3.66699,2727.1,2726.4,3.66771]
[1739566771748,0.03750561,2727.0,2726.2,3.66807]
[1739566772053,3.66725,2726.9,2726.2,3.66802]
[1739566772208,0.03750561,2726.8,2726.0,3.66833]
[1739566772407,3.66705,2727.0,2726.4,3.66775]
[1739566772928,3.97576,2727.3,2726.4,3.66775]
[1739566773225,3.97575,2727.3,2726.7,3.66738]
[1739566773432,3.66617,2727.7,2727.1,3.66689]
[1739566773943,0.7838,2727.8,2727.1,3.66689]
[1739566774092,0.7838,2727.8,2726.8,0.7824]
[1739566774093,0.03750561,2727.7,2726.9,3.66712]
[1739566774293,3.6665,2727.4,2726.8,4.44968]
[1739566774611,3.6665,2727.4,2726.6,3.66755]
[1739566774974,3.66694,2727.1,2726.4,4.45012]
[1739566775169,3.70463561,2727.0,2726.4,4.45012]
[1739566775372,0.82130561,2727.0,2726.0,4.45071]
[1739566775539,3.66732,2726.8,2726.0,4.45071]
[1739566775740,0.7838,2727.0,2726.5,3.6676]
[1739566776053,3.66691,2727.1,2726.5,3.6676]
[1739566776250,3.66691,2727.1,2726.3,3.66787]
[1739566776251,3.66705,2727.0,2726.3,3.66787]
[1739566776447,0.03750561,2726.9,2726.2,3.66804]
[1739566776614,3.66722,2726.9,2726.3,3.66794]
[1739566776819,0.03750561,2726.8,2726.0,4.45071]
[1739566777037,3.6677,2726.5,2726.0,3.66831]
[1739566777254,3.6677,2726.5,2725.8,3.66861]
[1739566777434,3.6677,2726.5,2725.7,0.7824]
[1739566777435,0.03750561,2726.4,2725.7,0.7824]
[1739566777634,0.7775,2726.5,2726.0,3.66828]
[1739566777876,0.7775,2726.9,2725.7,0.7824]
[1739566778051,3.66808,2726.3,2725.6,3.66884]
[1739566778222,0.7775,2726.6,2725.1,3.66952]
[1739566778416,3.7775,2726.3,2725.0,0.7764]
[1739566778615,3.66872,2725.8,2725.1,3.66953]
[1739566778926,3.66872,2725.8,2724.9,3.66984]
[1739566778927,3.66891,2725.6,2724.9,3.6698]
[1739566779127,3.7775,2726.3,2724.5,4.44675]
[1739566779128,0.03750561,2725.5,2724.5,4.44675]
[1739566779335,3.66893,2725.6,2724.9,3.66974]
[1739566779571,3.66892,2725.6,2725.0,3.66972]
[1739566779720,3.66881,2725.7,2725.1,3.66954]
[1739566780123,3.66862,2725.9,2724.7,3.67012]
[1739566780381,0.03750561,2725.8,2724.5,0.7764]
[1739566780579,3.66958,2725.2,2724.5,4.44678]
[1739566780891,3.66901,2725.6,2724.8,3.66987]
[1739566781023,3.66919,2725.4,2724.8,3.66987]
[1739566781220,7.44606,2725.9,2724.5,0.7764]
[1739566781474,3.66954,2725.2,2724.5,4.44679]
[1739566781775,3.66954,2725.2,2724.6,3.67013]
[1739566782274,6.66868,2725.8,2724.9,3.66975]
[1739566782275,3.66897,2725.6,2724.9,3.66975]
[1739566782477,3.66882,2725.7,2725.1,3.66958]
[1739566782621,3.66869,2725.8,2724.5,0.7764]
[1739566782827,3.66894,2725.6,2725.0,3.66967]
[1739566783045,3.6692,2725.4,2724.8,3.6699]
[1739566783222,3.6692,2725.4,2724.8,3.66988]
[1739566783423,3.66894,2725.6,2725.0,3.66966]
[1739566783647,3.66918,2725.4,2724.8,7.33977]
[1739566783847,3.66918,2725.4,2724.9,3.66982]
[1739566784258,3.66896,2725.6,2724.8,3.66988]
[1739566784438,0.7775,2725.9,2725.1,3.66949]
[1739566784635,3.66886,2725.7,2725.1,7.33899]
[1739566784962,6.5865,2726.3,2725.3,0.7764]
[1739566785456,6.5865,2726.3,2725.7,3.66876]
[1739566785661,6.5865,2726.3,2725.3,0.7764]
[1739566785662,3.6684,2726.0,2725.5,3.66894]
[1739566785864,3.66837,2726.1,2725.5,3.66894]
[1739566786036,10.25455,2726.3,2725.3,0.7764]
[1739566786262,6.5865,2726.3,2726.0,3.6683]
[1739566786579,5.809,2726.3,2726.2,3.6681]
[1739566786878,5.809,2726.3,2725.3,0.7764]
[1739566787194,3.66811,2726.2,2725.6,3.66883]
[1739566787401,3.66845,2726.0,2725.4,3.6691]
[1739566787699,9.47705,2726.3,2725.7,3.66868]
[1739566787847,5.809,2726.3,2725.3,0.7764]
[1739566788046,5.809,2726.3,2725.8,3.66853]
[1739566788303,3.66784,2726.4,2725.8,3.66853]
[1739566788611,4.44508,2726.6,2725.5,3.66899]
[1739566788762,4.44508,2726.6,2726.0,3.66829]
[1739566788965,3.66711,2727.0,2725.7,0.03667979]
[1739566789165,4.44444,2727.1,2726.5,3.66762]
[1739566789363,0.7775,2727.1,2726.6,3.66747]
[1739566789562,5.811,2727.5,2727.0,3.66702]
[1739566789896,5.811,2727.5,2726.9,7.33418]
[1739566790098,5.811,2727.5,2726.5,0.03666901]
[1739566790312,5.811,2727.5,2727.4,3.66649]
[1739566790466,0.7775,2728.3,2727.8,3.66586]
[1739566790661,4.44279,2728.3,2727.6,7.33227]
[1739566790847,3.66552,2728.2,2727.6,3.66612]
[1739566791054,4.44284,2728.3,2727.7,3.66599]
[1739566791270,3.66494,2728.6,2727.9,3.66581]
[1739566791492,3.66512,2728.5,2727.9,3.66581]
[1739566791851,3.0,2728.6,2727.7,3.66608]
[1739566792201,3.66514,2728.5,2727.7,4.44244]
[1739566792366,3.66529,2728.3,2727.7,4.44244]
[1739566792801,3.70293561,2728.2,2727.5,3.6663]
[1739566793004,3.70294561,2728.2,2727.5,3.6663]
[1739566793303,0.03750561,2728.2,2727.3,4.49467]
[1739566793500,7.33158,2728.0,2727.1,3.66684]
[1739566793852,7.33158,2728.0,2727.3,3.6666]
[1739566793853,0.7946,2727.9,2727.3,3.6666]
[1739566794059,0.03750561,2727.8,2727.1,7.33365]
[1739566794204,7.36964561,2727.8,2727.1,3.66681]
[1739566794404,3.70356561,2727.8,2727.1,3.66681]
[1739566794761,0.7946,2727.9,2727.3,3.66661]
[1739566794952,0.7946,2727.9,2727.1,3.66676]
[1739566795153,3.66605,2727.8,2727.2,3.66675]
[1739566795357,3.66688,2727.2,2726.6,3.66748]
[1739566795653,0.03750561,2727.1,2725.9,3.6684]
[1739566795854,0.7946,2727.2,2726.2,3.66802]
[1739566795855,3.66739,2726.8,2726.2,3.66802]
[1739566796038,3.66703,2727.0,2726.2,3.66802]
[1739566796217,3.66716,2726.9,2726.0,7.33655]
[1739566796420,3.66716,2726.9,2726.2,3.66802]
[1739566796642,3.66605,2727.8,2727.0,3.66694]
[1739566796849,3.66605,2727.8,2727.1,3.66681]
[1739566797008,3.66638,2727.5,2726.9,3.66714]
[1739566797356,3.66651,2727.4,2726.8,3.66717]
[1739566797561,3.66638,2727.5,2726.6,0.8281]
[1739566797562,0.311,2728.0,2726.6,0.8281]
[1739566797779,0.7946,2728.1,2727.5,3.66627]
[1739566797780,4.46025,2728.1,2727.5,3.66627]
[1739566797912,0.7946,2728.1,2727.5,7.33255]
[1739566798114,0.7946,2728.1,2726.7,0.03666606]
[1739566798316,3.66531,2728.3,2726.9,0.8281]
[1739566798528,4.45965,2728.5,2727.0,8.41734788]
[1739566798782,0.7946,2728.5,2727.9,3.66571]
[1739566798915,0.7946,2729.0,2728.4,3.66507]
[1739566799117,4.45906,2729.0,2727.8,0.8281]
[1739566799314,0.7946,2729.0,2727.9,3.66571]
[1739566799547,3.66477,2728.7,2728.1,3.66555]
[1739566799750,4.45903,2729.0,2728.3,3.6652]
[1739566799914,4.45898,2729.0,2728.3,3.66515]
[1739566800114,0.7946,2729.0,2727.8,0.86474911]
[1739566800373,0.7946,2729.7,2727.9,3.66582]
[1739566800518,3.66409,2729.2,2728.3,3.66517]
[1739566800715,0.83210561,2729.1,2727.8,0.8281]
[1739566800912,0.83210561,2729.1,2727.0,4.71370955]
[1739566800913,3.66571,2728.0,2727.4,4.49457]
[1739566801112,3.66596,2727.8,2727.2,3.66666]
[1739566801354,3.66566,2728.1,2727.2,3.66665]
[1739566801631,3.66574,2728.0,2727.2,3.66665]
[1739566801974,3.66593,2727.9,2727.2,7.3333]
[1739566802115,0.7946,2728.3,2726.9,0.8281]
[1739566802316,0.7946,2728.3,2726.6,4.26416955]